lending/lending_fUSD_20260102
["ID","MTS","AMOUNT","RATE_DAILY","PERIOD"]
[400301259,1767319832881,-500.0,0.00015357,2]
[400301260,1767319832890,-500.0,0.00015357,2]
[400301261,1767319832899,-300.0,0.00015357,2]
[400301262,1767319832908,-500.0,0.00015357,2]
[400301263,1767319832917,-500.0,0.00015357,2]
[400301264,1767319832927,-500.0,0.00015357,2]
[400301265,1767319832936,-500.0,0.00015357,2]
[400301266,1767319832945,-300.0,0.00015357,2]
[400301267,1767319832955,-606.35,0.00015359,2]
[400301268,1767319832964,-151.0,0.00015359,2]
[400301269,1767319832974,-151.0,0.0001537,2]
[400301270,1767319832983,-500.0,0.00015372,2]
[400301271,1767319832992,-150.0,0.00015373,2]
[400301272,1767319833002,-150.0,0.00015373,2]
[400301273,1767319833011,-151.0,0.00015373,2]
[400301274,1767319833020,-151.0,0.00015373,2]
[400301275,1767319833030,-151.0,0.00015373,2]
[400301276,1767319833039,-180.619544,0.00015373,2]
[400301277,1767319833049,-151.0,0.00015373,2]
[400301278,1767319833059,-151.0,0.00015373,2]
[400301279,1767319833068,-33555.52431568,0.00015373,2]
[400301280,1767319833082,-1027.18985602,0.00015373,2]
[400301281,1767319833093,-8854.9825613,0.00015373,2]
[400301282,1767319833108,-2604.21796802,0.00015373,2]
[400301283,1767319833119,-397.84647269,0.00015373,2]
[400301293,1767319837652,-300.0,0.00015373,2]
[400301294,1767319837702,-6696.99621529,0.00015373,2]
[400301295,1767319837712,-1000.0,0.00015394,2]
[400301296,1767319837722,-910.77275608,0.00015394,2]
[400301297,1767319837731,-221.15899704,0.00015394,2]
[400301298,1767319837740,-775.00212704,0.00015394,2]
[400301299,1767319837749,-283.06405102,0.00015394,2]
[400301300,1767319837759,-176.06306093,0.00015428,2]
[400301301,1767319837768,-260.16336853,0.00015428,2]
[400301302,1767319837777,-1444.38185833,0.00015472,2]
[400301303,1767319837786,-151.0,0.00015491,2]
[400301304,1767319837795,-500.0,0.00015493,2]
[400301305,1767319837804,-500.0,0.00015493,2]
[400301306,1767319837814,-500.0,0.00015493,2]
[400301307,1767319837823,-518.18459774,0.00015493,2]
[400301308,1767319837832,-500.0,0.00015493,2]
[400301309,1767319837842,-431.42722031,0.00015493,2]
[400301310,1767319837851,-500.0,0.00015493,2]
[400301311,1767319837860,-500.0,0.00015493,2]
[400301313,1767319837869,-606.92254659,0.00015493,2]
[400301314,1767319837880,-500.0,0.00015493,2]
[400301315,1767319837889,-500.0,0.00015493,2]
[400301316,1767319837899,-500.0,0.00015493,2]
[400301317,1767319837908,-500.0,0.00015493,2]
[400301318,1767319837917,-588.37586741,0.00015493,2]
[400301320,1767319837927,-1186.0,0.00015494,2]
[400301321,1767319837938,-162219.56175512,0.00015494,2]
[400301322,1767319837949,-3817.49449379,0.00015494,2]
[400301323,1767319837960,-931.07497175,0.00015494,2]
[400301324,1767319837971,-162539.27066962,0.00015494,2]
[400301333,1767319839743,-316.60082514,0.00015494,2]
[400301334,1767319839796,-343.42901379,0.00015494,2]
[400301335,1767319839808,-4346.55214454,0.00015494,2]
[400301336,1767319839820,-3175.50994958,0.00015494,2]
[400301337,1767319839831,-474.60097449,0.00015494,2]
[400301338,1767319839956,-2245.1769798,0.00015494,2]
[400301339,1767319839970,-2767.26735899,0.00015494,2]
[400301343,1767319841438,500.0,0.00043167,120]
[400301344,1767319841683,500.0,0.00043167,120]
[400301345,1767319841926,500.0,0.00043167,120]
[400301346,1767319842168,500.0,0.00043167,120]
[400301347,1767319842397,500.0,0.00043167,120]
[400301350,1767319842681,500.0,0.00043167,120]
[400301351,1767319842916,235.58720074,0.00043167,120]
[400301352,1767319844129,-265.77294592,0.00015494,2]
[400301353,1767319844141,-607.79607979,0.00015494,2]
[400301354,1767319844182,-388.64047566,0.00015494,2]
[400301355,1767319844195,-3700.92515172,0.00015494,2]
[400301356,1767319844291,-527.50353436,0.00015494,2]
[400301357,1767319844303,-1602.30727724,0.00015494,2]
[400301361,1767319845654,-51762.04223353,0.00015494,2]
[400301362,1767319845665,-4843.20733325,0.00015494,2]
[400301363,1767319845707,-548.15193719,0.00015494,2]
[400301364,1767319845762,-968.26586445,0.00015494,2]
[400301365,1767319845815,-2714.29393802,0.00015494,2]
[400301366,1767319845827,-265.59999999,0.00015494,2]
[400301367,1767319845974,-428788.45296275,0.00015494,2]
[400301369,1767319860866,500.0,0.00043167,120]
[400301370,1767319869274,157.036954,0.00043167,50]
[400301371,1767319876692,329.60066242,0.00043167,120]
[400301372,1767319925904,151.0,0.00043167,50]
[400301373,1767319926233,151.0,0.00043167,50]
[400301374,1767319926516,268.546804,0.00043167,50]
[400301375,1767319999167,523.40459135,0.00043167,120]
[400301376,1767320054536,151.0,0.00043167,50]
[400301377,1767320054817,151.0,0.00043167,50]
[400301378,1767320055230,153.763531,0.00043167,50]
[400301379,1767320162933,500.0,0.00043167,120]
[400301380,1767320166305,151.0,0.00043167,120]
[400301381,1767320166931,151.0,0.00043167,120]
[400301382,1767320167518,151.0,0.00043167,120]
[400301383,1767320168307,151.0,0.00043167,120]
[400301384,1767320168940,500.0,0.00043167,120]
[400301385,1767320169317,500.0,0.00043167,120]
[400301386,1767320169563,500.0,0.00043167,120]
[400301387,1767320169967,500.0,0.00043167,120]
[400301388,1767320170227,500.0,0.00043167,120]
[400301389,1767320170581,500.0,0.00043167,120]
[400301390,1767320170856,500.0,0.00043167,120]
[400301391,1767320171404,250.0,0.00043167,120]
[400301392,1767320172030,250.0,0.00043167,120]
[400301393,1767320173533,337.00282267,0.00043167,120]
[400301394,1767320174429,500.0,0.00043167,120]
[400301395,1767320175101,500.0,0.00043167,120]
[400301396,1767320184831,158.03,0.000301,120]
[400301397,1767320242849,222.649912,0.00043167,50]
[400301398,1767320415447,343.08,0.00043161,30]
[400301399,1767320461917,500.0,0.00043161,120]
[400301400,1767320511858,189.14869285,0.00043161,30]
[400301401,1767320549903,250.0,0.00043161,120]
[400301402,1767320567486,889.94910671,0.00043161,120]
[400301403,1767320601228,250.0,0.00043161,120]
[400301404,1767320713426,411.12639626,0.0004317,120]
[400301405,1767320726583,607.21753524,0.0004317,120]
[400301406,1767320734932,839.25875421,0.0004317,30]
[400301407,1767320738631,1127.30561104,0.0004317,30]
[400301409,1767320761348,500.0,0.0004317,120]
[400301410,1767320763945,308.29028156,0.0004317,120]
[400301411,1767320803921,674.72737322,0.0003,120]
[400301412,1767320815233,779.4002209,0.0004317,120]
[400301414,1767320819119,215.71499059,0.0004317,120]
[400301415,1767320847007,307.11498598,0.0004317,120]
[400301420,1767320861516,153.06400362,0.0004317,30]
[400301422,1767320864979,308.51535749,0.0004317,120]
[400301424,1767320881230,153.88025415,0.0004317,30]
[400301425,1767320899799,392.02540061,0.0004317,120]
[400301426,1767320900047,187.13686934,0.0004317,120]
[400301427,1767320902403,1384.47815839,0.0004317,120]
[400301428,1767320903307,257.61385957,0.0004317,120]
[400301429,1767320903497,25875.81204635,0.0004317,30]
[400301430,1767320903686,1464.27714778,0.0004317,120]
[400301431,1767320904473,498.25559508,0.0004317,120]
[400301432,1767320904599,7927.63185366,0.0004317,60]
[400301433,1767320905836,176.10417178,0.0004317,30]
[400301434,1767320906095,724.36050439,0.0004317,120]
[400301435,1767320906583,265.47983532,0.0004317,30]
[400301436,1767320907777,270.46215838,0.0004317,120]
[400301440,1767320911177,415.07168449,0.0004317,120]
[400301441,1767320916473,602.24631297,0.0004317,30]
[400301442,1767320918139,609.15898112,0.0004317,30]
[400301443,1767320918658,402.88871979,0.0004317,120]
[400301444,1767320920019,540.54425215,0.0004317,90]
[400301445,1767320921031,251.34944865,0.0004317,120]
[400301446,1767320951151,-891.89441879,0.00012,2]
[400301447,1767321030201,500.0,0.0004317,120]
[400301455,1767321031743,-108.37272041,0.00012,2]
[400301456,1767321031753,-250.0,0.000132,2]
[400301457,1767321031763,-14.92700697,0.00013305,2]
[400301458,1767321031796,-264.59999972,0.00013305,2]
[400301459,1767321031809,-946.19348731,0.00013305,2]
[400301460,1767321031819,-500.0,0.00013373,2]
[400301461,1767321031828,-500.0,0.00013373,2]
[400301462,1767321031838,-166.66,0.00013376,2]
[400301463,1767321031847,-250.46481263,0.00013485,2]
[400301464,1767321031857,-1200.0,0.00013564,2]
[400301465,1767321031867,-888.16757856,0.00013565,2]
[400301466,1767321031878,-1210.11489401,0.00013565,2]
[400301467,1767321031909,-1566.29752743,0.00013565,2]
[400301468,1767321031924,-18.80746024,0.00013658,2]
[400301469,1767321031936,-147.85253976,0.00013658,2]
[400301470,1767321031945,-155.52,0.00013726,2]
[400301471,1767321031955,-167.53,0.00013854,2]
[400301472,1767321031964,-257.4353313,0.00013872,2]
[400301473,1767321031975,-119.5646687,0.00013872,2]
[400301474,1767321031985,-184.67884128,0.00013874,2]
[400301500,1767321038139,-268.84115872,0.00013874,2]
[400301501,1767321038149,-300.0,0.00013919,2]
[400301502,1767321038159,-269.0,0.00013919,2]
[400301503,1767321038169,-1000.0,0.00013921,2]
[400301504,1767321038178,-1000.0,0.00013921,2]
[400301505,1767321038188,-154.71343804,0.00013932,2]
[400301506,1767321038198,-166.66,0.00013939,2]
[400301508,1767321038208,-166.66,0.00014221,2]
[400301510,1767321038217,-177.93,0.00014223,2]
[400301512,1767321038227,-151.0,0.00014325,2]
[400301514,1767321038237,-150.0,0.00014325,2]
[400301516,1767321038247,-290.74382673,0.00014327,2]
[400301518,1767321038256,-125.38317527,0.00014327,2]
[400301521,1767321038276,-374.61682473,0.00014327,2]
[400301523,1767321038285,-201.34206213,0.00014327,2]
[400301525,1767321038294,-343.22523915,0.00014327,2]
[400301527,1767321038304,-174.98603803,0.00014327,2]
[400301529,1767321038314,-500.0,0.00014327,2]
[400301531,1767321038323,-237.04353155,0.00014327,2]
[400301533,1767321038332,-323.23894028,0.00014327,2]
[400301535,1767321038341,-500.0,0.00014327,2]
[400301538,1767321038351,-500.0,0.00014327,2]
[400301540,1767321038361,-102.83632309,0.00014327,2]
[400301542,1767321038373,-386.1649995,0.00014327,2]
[400301544,1767321038386,-10.99867741,0.00014327,2]
[400301546,1767321038396,-500.0,0.00014327,2]
[400301548,1767321038406,-500.0,0.00014327,2]
[400301550,1767321038423,-500.0,0.00014327,2]
[400301552,1767321038433,-500.0,0.00014327,2]
[400301553,1767321038443,-36.57292,0.00014327,2]
[400301554,1767321038456,-357.96148991,0.00014327,2]
[400301555,1767321038468,-220.63075225,0.00014327,2]
[400301556,1767321038477,-500.0,0.00014327,2]
[400301557,1767321038491,-500.0,0.00014327,2]
[400301558,1767321038501,-32.39880622,0.00014327,2]
[400301559,1767321038513,-125.87454274,0.00014327,2]
[400301560,1767321038524,-698.51930191,0.00014328,2]
[400301561,1767321038536,-1238.95791096,0.00014328,2]
[400301562,1767321038549,-791.20191441,0.00014328,2]
[400301563,1767321038566,-741.03851009,0.00014328,2]
[400301564,1767321038578,-3636.82058928,0.00014328,2]
[400301565,1767321038590,-10516.64293417,0.00014328,2]
[400301566,1767321038606,-1827.41417981,0.00014328,2]
[400301567,1767321038619,-5590.39649987,0.00014328,2]
[400301568,1767321038631,-1017.66235513,0.00014328,2]
[400301569,1767321038644,-473.8514605,0.00014328,2]
[400301570,1767321038656,-1103.16022683,0.00014328,2]
[400301574,1767321039882,-262.43585575,0.00014328,2]
[400301575,1767321039895,-1516.79057988,0.00014328,2]
[400301577,1767321040150,-315.32000001,0.00014328,2]
[400301578,1767321040162,-1729.9999,0.00014328,2]
[400301579,1767321040174,-1649.6059058,0.00014328,2]
[400301580,1767321040204,-843.40981153,0.00014328,2]
[400301581,1767321040216,-3961.94595486,0.00014328,2]
[400301582,1767321040228,-379.05898295,0.00014328,2]
[400301583,1767321040260,-395.92311807,0.00014328,2]
[400301584,1767321040272,-1277.13386125,0.00014328,2]
[400301597,1767321043474,-507.18214475,0.00014328,2]
[400301626,1767321045988,-5741.350374,0.00014328,2]
[400301657,1767321061828,500.0,0.0004317,120]
[400301658,1767321072332,337.29322944,0.0004317,120]
[400301659,1767321147552,150.0,0.0004317,120]
[400301660,1767321148977,461.77,7.168e-05,2]
[400301661,1767321149199,461.77,7.545e-05,2]
[400301662,1767321149420,461.77,7.923e-05,2]
[400301663,1767321149607,461.77,8.3e-05,2]
[400301664,1767321149813,461.77,8.677e-05,2]
[400301665,1767321150006,461.77,9.054e-05,2]
[400301666,1767321150209,461.77,9.432e-05,2]
[400301667,1767321150414,461.77,9.809e-05,2]
[400301668,1767321150610,461.77,0.00010186,2]
[400301669,1767321150808,461.77,0.00010563,2]
[400301670,1767321180451,500.0,0.0004317,120]
[400301671,1767321358107,394.65738077,0.0004317,120]
[400301672,1767321361605,500.0,0.0004317,120]
[400301673,1767321367298,1099.0,0.0004317,30]
[400301674,1767321369658,1099.0,0.0004317,30]
[400301675,1767321372022,280.71358793,0.0004317,30]
[400301676,1767321374443,1099.0,0.0004317,30]
[400301678,1767321449881,206.08343203,0.0004317,120]
[400301679,1767321545562,228.93325077,0.0004317,120]
[400301680,1767321619864,151.0,0.00043173,50]
[400301681,1767321620166,151.0,0.00043173,50]
[400301682,1767321620486,151.0,0.00043173,50]
[400301683,1767321620798,151.0,0.00043173,50]
[400301684,1767321621113,151.0,0.00043173,50]
[400301685,1767321621426,201.162668,0.00043173,50]
[400301686,1767321641915,151.0,0.00043173,50]
[400301687,1767321642232,151.0,0.00043173,50]
[400301688,1767321642523,151.0,0.00043173,50]
[400301689,1767321642802,151.0,0.00043173,50]
[400301690,1767321643100,151.0,0.00043173,50]
[400301691,1767321643780,177.618486,0.00043173,50]
[400301692,1767321660848,500.0,0.00043173,120]
[400301693,1767321704337,155.501497,0.00043173,50]
[400301697,1767321944821,151.0,0.00043174,50]
[400301698,1767321944964,151.0,0.00043174,50]
[400301699,1767321945294,151.0,0.00043174,50]
[400301700,1767321945574,185.26289,0.00043174,50]
[400301701,1767321960878,500.0,0.00043174,120]
[400301702,1767322008132,-415.80392044,0.00010941,2]
[400301703,1767322116772,150.0,0.00043174,120]
[400301704,1767322158085,-45.96607956,0.00010941,2]
[400301705,1767322158108,-461.77,0.00011318,2]
[400301706,1767322158130,-260.70519177,0.00011688,2]
[400301707,1767322174258,191.44582181,0.00043174,120]
[400301709,1767322231961,-254.45,0.00011695,2]
[400301710,1767322231973,-207.32,0.00011695,2]
[400301711,1767322231985,-250.0,0.00012035,2]
[400301712,1767322231996,-213.59767627,0.00012035,2]
[400301713,1767322232009,-461.77,0.00012072,2]
[400301714,1767322232019,-461.77,0.0001245,2]
[400301715,1767322232029,-461.77,0.00012827,2]
[400301716,1767322232040,-301.56745687,0.00012865,2]
[400301717,1767322232050,-461.77,0.00013204,2]
[400301718,1767322232061,-500.0,0.00013373,2]
[400301719,1767322232073,-500.0,0.00013373,2]
[400301720,1767322232083,-500.0,0.00013373,2]
[400301721,1767322232093,-461.77,0.00013582,2]
[400301722,1767322232103,-1200.0,0.0001359,2]
[400301723,1767322232114,-1436.75,0.00013591,2]
[400301724,1767322232125,-300.0,0.00013702,2]
[400301725,1767322232135,-3240.0,0.00013703,2]
[400301726,1767322232144,-1000.0,0.00013921,2]
[400301727,1767322232155,-351.94328179,0.00013921,2]
[400301728,1767322232165,-1000.0,0.00013921,2]
[400301729,1767322232175,-461.77,0.00013959,2]
[400301731,1767322232186,-154.90064362,0.00014023,2]
[400301733,1767322232196,-359.26868396,0.00014225,2]
[400301735,1767322232206,-2572.8603595,0.00014302,2]
[400301736,1767322232217,-1414.8625069,0.00014302,2]
[400301738,1767322232229,-500.0,0.00014316,2]
[400301740,1767322232241,-596.38,0.00014316,2]
[400301743,1767322232256,-502.57898283,0.00014316,2]
[400301747,1767322232267,-500.0,0.00014316,2]
[400301750,1767322232278,-500.0,0.00014316,2]
[400301752,1767322232292,-500.0,0.00014316,2]
[400301753,1767322232303,-150.0,0.00014317,2]
[400301754,1767322232315,-25167.46288545,0.00014318,2]
[400301755,1767322232331,-11056.47307172,0.00014318,2]
[400301756,1767322232343,-151.0,0.00014325,2]
[400301757,1767322232357,-240.25766741,0.00014327,2]
[400301758,1767322232367,-603.27063652,0.00014327,2]
[400301759,1767322232376,-203.52067871,0.00014327,2]
[400301760,1767322232386,-3963.42703904,0.00014328,2]
[400301761,1767322232399,-55062.08058915,0.00014328,2]
[400301762,1767322232409,-706.8474524,0.00014328,2]
[400301763,1767322232419,-461.77,0.00014336,2]
[400301764,1767322232430,-367.98300067,0.00014468,2]
[400301765,1767322232440,-1500.0,0.00014468,2]
[400301766,1767322232451,-166.66,0.00014502,2]
[400301767,1767322232461,-200.0,0.00014507,2]
[400301768,1767322232471,-182.72,0.00014543,2]
[400301769,1767322232491,-999.0,0.00014611,3]
[400301770,1767322232503,-150.0,0.00014762,2]
[400301771,1767322232515,-166.66,0.00014784,2]
[400301772,1767322232527,-2301.4858,0.00014857,2]
[400301773,1767322232539,-1680.0,0.0001495,2]
[400301774,1767322232551,-1000.0,0.00014957,2]
[400301775,1767322232563,-2000.0,0.00015016,2]
[400301776,1767322232579,-2716.23280623,0.0001521,2]
[400301777,1767322232596,-574.32343474,0.0001521,2]
[400301778,1767322232606,-500.0,0.0001521,2]
[400301779,1767322232616,-500.0,0.00015256,2]
[400301780,1767322232628,-500.0,0.00015256,2]
[400301781,1767322232638,-150.0,0.00015288,2]
[400301782,1767322232649,-155.39221977,0.00015288,2]
[400301783,1767322232660,-156.24286496,0.00015288,2]
[400301784,1767322232671,-150.0,0.00015288,2]
[400301785,1767322232682,-151.0,0.00015307,2]
[400301786,1767322232692,-103.95167362,0.0001531,2]
[400301787,1767322232711,-565.41832638,0.0001531,2]
[400301788,1767322232721,-150.99,0.0001531,2]
[400301789,1767322232731,-419.16197869,0.0001531,2]
[400301795,1767322238010,-261.51651622,0.00014316,2]
[400301796,1767322238021,-500.0,0.00014316,2]
[400301797,1767322238032,-9580.82802131,0.0001531,2]
[400301798,1767322238042,-742.08,0.0001531,2]
[400301799,1767322238053,-299.99,0.0001531,2]
[400301800,1767322238063,-9999.99,0.0001531,2]
[400301801,1767322238074,-150.99,0.0001531,2]
[400301802,1767322238084,-174.61,0.0001531,2]
[400301803,1767322238094,-6108.5,0.0001531,2]
[400301804,1767322238104,-4050.46,0.0001531,2]
[400301805,1767322238119,-999.99,0.0001531,2]
[400301806,1767322238130,-203.246612,0.00015318,2]
[400301807,1767322238140,-174.77,0.0001537,2]
[400301808,1767322238151,-168.52,0.0001537,2]
[400301809,1767322238161,-500.0,0.00015388,2]
[400301810,1767322238172,-1204.01726074,0.00015393,2]
[400301811,1767322238183,-3290.55624094,0.00015398,2]
[400301812,1767322238194,-255.0,0.00015433,2]
[400301813,1767322238205,-156.60628,0.0001544,2]
[400301814,1767322238215,-156.60628,0.0001544,2]
[400301816,1767322238226,-500.0,0.00015484,2]
[400301818,1767322238236,-233.76808948,0.0001549,2]
[400301820,1767322238247,-500.0,0.00015492,2]
[400301822,1767322238257,-500.0,0.00015492,2]
[400301824,1767322238267,-500.0,0.00015492,2]
[400301826,1767322238279,-500.0,0.00015492,2]
[400301829,1767322238294,-478.38900651,0.00015492,2]
[400301831,1767322238304,-500.0,0.00015492,2]
[400301833,1767322238315,-517.0837433,0.00015492,2]
[400301835,1767322238326,-6315.3737341,0.00015493,2]
[400301837,1767322238335,-206817.290979,0.00015493,2]
[400301839,1767322238346,-6791.181151,0.00015493,2]
[400301841,1767322238357,-153.240552,0.00015493,2]
[400301843,1767322238367,-151.0,0.00015493,2]
[400301845,1767322238378,-151.0,0.00015493,2]
[400301847,1767322238388,-1008.0,0.000155,2]
[400301849,1767322238398,-257.57928712,0.00015517,2]
[400301851,1767322238408,-226.99702488,0.00015547,2]
[400301853,1767322238419,-158.889,0.00015553,2]
[400301855,1767322238428,-1466.432,0.00015553,2]
[400301858,1767322238438,-1204.01726072,0.0001556,2]
[400301860,1767322238448,-1006.55857093,0.00015564,2]
[400301861,1767322238458,-168.0,0.00015565,2]
[400301863,1767322238468,-669.37,0.00015584,2]
[400301865,1767322238478,-3290.55624094,0.00015586,2]
[400301867,1767322238490,-500.0,0.00015593,2]
[400301868,1767322238500,-156.60629,0.00015596,2]
[400301870,1767322238511,-156.60629,0.00015596,2]
[400301872,1767322238521,-156.60628,0.00015596,2]
[400301874,1767322238531,-1000.0,0.000156,2]
[400301876,1767322238541,-11320.07422884,0.00015643,2]
[400301879,1767322238551,-160.0,0.0001572,2]
[400301881,1767322238561,-277.59,0.00015727,2]
[400301883,1767322238572,-1204.01726072,0.00015728,2]
[400301885,1767322238582,-500.0,0.00015758,2]
[400301887,1767322238593,-3290.55624094,0.00015773,2]
[400301888,1767322238605,-1000.0,0.000158,2]
[400301889,1767322238616,-568.739,0.00015828,2]
[400301890,1767322238626,-4848.913,0.00015828,2]
[400301891,1767322238637,-669.37,0.00015858,2]
[400301892,1767322238647,-1204.01726072,0.00015895,2]
[400301893,1767322238659,-1000.0,0.000159,2]
[400301894,1767322238669,-4825.91635434,0.00015944,2]
[400301895,1767322238682,-3290.55624094,0.00015961,2]
[400301896,1767322238692,-2912.0,0.00015992,2]
[400301897,1767322238703,-500.0,0.00015999,2]
[400301898,1767322238714,-500.0,0.00015999,2]
[400301899,1767322238725,-500.0,0.00015999,2]
[400301900,1767322238735,-500.0,0.00015999,2]
[400301901,1767322238746,-28083.32596493,0.00016,4]
[400301906,1767322240051,-442.79422972,0.00016,4]
[400301908,1767322240424,-15227.89430148,0.00016,4]
[400301910,1767322240434,-33738.17506035,0.00016,2]
[400301913,1767322240453,-250.0,0.00016,2]
[400301915,1767322240466,-13958.01965073,0.00016,2]
[400301916,1767322240477,-151.0,0.00016,2]
[400301917,1767322240487,-151.0,0.00016,2]
[400301920,1767322240498,-1000.0,0.00016,2]
[400301921,1767322240508,-206.188018,0.00016,2]
[400301922,1767322240519,-509.49377493,0.00016032,2]
[400301924,1767322240920,-970.88,0.00016055,2]
[400301925,1767322240938,-1204.01726072,0.00016063,2]
[400301926,1767322240949,-1000.0,0.000161,2]
[400301927,1767322240959,-669.37,0.00016132,2]
[400301928,1767322240968,-3290.55624094,0.00016149,2]
[400301929,1767322240977,-1000.0,0.00016151,2]
[400301930,1767322240988,-5000.00301299,0.000162,5]
[400301931,1767322240997,-212.01331896,0.000162,5]
[400301932,1767322241006,-1204.01726072,0.0001623,2]
[400301933,1767322241016,-151.35,0.00016283,2]
[400301934,1767322241025,-2912.0,0.00016307,2]
[400301935,1767322241034,-151.0,0.0001631,2]
[400301936,1767322241043,-151.0,0.0001631,2]
[400301937,1767322241052,-151.0,0.00016313,2]
[400301938,1767322241061,-151.0,0.00016313,2]
[400301939,1767322241070,-3290.55624094,0.00016337,2]
[400301940,1767322241082,-168.0,0.00016341,2]
[400301941,1767322241092,-343.78,0.00016387,2]
[400301942,1767322241101,-301.34,0.00016387,2]
[400301943,1767322241111,-181.62,0.00016387,2]
[400301944,1767322241120,-656.31,0.00016387,2]
[400301945,1767322241129,-555.16,0.00016387,2]
[400301946,1767322241138,-555.16,0.00016387,2]
[400301947,1767322241147,-1082.48,0.00016387,2]
[400301948,1767322241159,-1204.01726072,0.00016398,2]
[400301949,1767322241167,-2912.0,0.00016402,2]
[400301950,1767322241177,-669.37,0.00016406,2]
[400301951,1767322241187,-2912.0,0.00016414,2]
[400301952,1767322241196,-151.0,0.00016438,2]
[400301953,1767322241206,-151.0,0.00016438,2]
[400301954,1767322241216,-500.0,0.00016438,2]
[400301955,1767322241225,-500.0,0.00016438,2]
[400301956,1767322241234,-338.01401099,0.00016438,2]
[400301957,1767322241243,-3616.04,0.00016438,2]
[400301958,1767322241253,-2351.0,0.00016444,2]
[400301959,1767322241262,-2912.0,0.00016445,2]
[400301960,1767322241272,-250.34785573,0.000165,2]
[400301961,1767322241287,-3290.55624094,0.00016524,2]
[400301962,1767322241297,-1204.01726072,0.00016565,2]
[400301963,1767322241306,-2912.0,0.00016566,2]
[400301964,1767322241315,-2912.0,0.0001658,2]
[400301965,1767322241324,-1419.0,0.00016605,2]
[400301966,1767322241334,-2912.0,0.00016605,2]
[400301967,1767322241343,-433.0,0.00016636,2]
[400301968,1767322241353,-669.39187715,0.0001668,2]
[400301969,1767322241363,-3290.55624094,0.00016712,2]
[400301970,1767322241372,-1204.01726072,0.00016733,2]
[400301971,1767322241381,-168.0,0.00016763,2]
[400301972,1767322241390,-2912.0,0.00016772,2]
[400301973,1767322241399,-500.0,0.00016899,2]
[400301974,1767322241408,-746.20442043,0.000169,3]
[400301975,1767322241417,-227.23403609,0.000169,3]
[400301976,1767322241427,-801.69821101,0.000169,3]
[400301977,1767322241435,-1564.39998877,0.000169,2]
[400301978,1767322241445,-24246.46053552,0.000169,3]
[400301979,1767322241454,-1204.01726072,0.000169,2]
[400301980,1767322241463,-286.43263874,0.000169,2]
[400301981,1767322241472,-194.7544572,0.000169,2]
[400301982,1767322241484,-267.61275939,0.000169,2]
[400301990,1767322243652,-316.47033406,0.000169,2]
[400302056,1767322245984,-440.415,0.000169,2]
[400302063,1767322246038,-959.965783,0.000169,2]
[400302065,1767322246049,-1890.17545794,0.000169,2]
[400302067,1767322246061,-609.86537503,0.000169,2]
[400302069,1767322246070,-1875.49471656,0.000169,2]
[400302071,1767322246078,-2912.0,0.00016912,2]
[400302072,1767322246087,-168.0,0.0001695,2]
[400302073,1767322246096,-500.0,0.00016973,2]
[400302074,1767322246105,-512.7202162,0.00016973,2]
[400302075,1767322246114,-500.0,0.00016973,2]
[400302076,1767322246123,-416.46404582,0.00016973,2]
[400302077,1767322246132,-214.39189678,0.00016973,2]
[400302078,1767322246141,-500.0,0.00016973,2]
[400302080,1767322246149,-500.0,0.00016973,2]
[400302082,1767322246159,-150.0,0.00016986,2]
[400302083,1767322246168,-152.28280997,0.00016999,2]